fUST/lending_fUST_20250522
["ID","MTS","AMOUNT","RATE_DAILY","PERIOD"]
[361913942,1747887047507,-430.0,0.00022739,2]
[361913943,1747887047517,-430.0,0.00022739,2]
[361913944,1747887047527,-243.34,0.00022739,2]
[361913945,1747887047538,-430.0,0.00022739,2]
[361913946,1747887047548,-430.0,0.00022739,2]
[361913947,1747887047558,-2316.98,0.00022739,2]
[361913948,1747887047568,-349.5,0.0002278,2]
[361913949,1747887047578,-1146.69034761,0.00022793,2]
[361913950,1747887047588,-1206.5223365,0.000229,8]
[361913951,1747887047599,-250.50159249,0.00022917,2]
[361913952,1747887047609,-430.0,0.00023013,2]
[361913953,1747887047621,-430.0,0.00023013,2]
[361913954,1747887047631,-430.0,0.00023013,2]
[361913955,1747887047641,-430.0,0.00023013,2]
[361913956,1747887047651,-430.0,0.00023013,2]
[361913957,1747887047662,-430.0,0.00023013,2]
[361913958,1747887047671,-430.0,0.00023013,2]
[361913959,1747887047681,-430.0,0.00023013,2]
[361913960,1747887047691,-430.0,0.00023013,2]
[361913961,1747887047702,-430.0,0.00023013,2]
[361913962,1747887047712,-430.0,0.00023013,2]
[361913963,1747887047726,-430.0,0.00023013,2]
[361913964,1747887047736,-430.0,0.00023013,2]
[361913965,1747887047745,-430.0,0.00023013,2]
[361913966,1747887047755,-430.0,0.00023013,2]
[361913967,1747887047765,-430.0,0.00023013,2]
[361913968,1747887047775,-430.0,0.00023013,2]
[361913969,1747887047785,-354.02,0.00023013,2]
[361913970,1747887047796,-430.0,0.00023013,2]
[361913971,1747887047807,-430.0,0.00023013,2]
[361913972,1747887047817,-430.0,0.00023013,2]
[361913973,1747887047827,-430.0,0.00023013,2]
[361913974,1747887047837,-430.0,0.00023013,2]
[361913975,1747887047848,-428.54429707,0.00023013,2]
[361913976,1747887047858,-235.44,0.00023013,2]
[361913977,1747887047868,-430.0,0.00023013,2]
[361913978,1747887047879,-430.0,0.00023013,2]
[361913979,1747887047889,-430.0,0.00023013,2]
[361913980,1747887047899,-430.0,0.00023013,2]
[361913981,1747887047908,-556.42,0.00023013,2]
[361913982,1747887047918,-453.61,0.00023013,2]
[361913983,1747887047927,-430.0,0.00023013,2]
[361913984,1747887047937,-437.23755113,0.00023013,2]
[361913985,1747887047947,-467.58,0.00023013,2]
[361913986,1747887047957,-430.0,0.00023013,2]
[361913987,1747887047967,-430.0,0.00023013,2]
[361913988,1747887047977,-430.0,0.00023013,2]
[361913989,1747887047987,-430.0,0.00023013,2]
[361913990,1747887047997,-430.0,0.00023013,2]
[361913991,1747887048008,-430.0,0.00023013,2]
[361913992,1747887048018,-430.0,0.00023013,2]
[361913993,1747887048028,-430.0,0.00023013,2]
[361913994,1747887048041,-430.0,0.00023013,2]
[361913995,1747887048051,-1419.92,0.00023013,2]
[361913996,1747887048060,-430.0,0.00023013,2]
[361913997,1747887048070,-530.43,0.00023013,2]
[361913998,1747887048080,-582.86,0.00023013,2]
[361913999,1747887048089,-430.0,0.00023013,2]
[361914000,1747887048099,-430.0,0.00023013,2]
[361914001,1747887048109,-430.0,0.00023013,2]
[361914002,1747887048120,-261.06,0.00023013,2]
[361914003,1747887048130,-430.0,0.00023013,2]
[361914004,1747887048140,-660.78,0.00023013,2]
[361914005,1747887048151,-1550.53,0.00023013,2]
[361914006,1747887048162,-430.0,0.00023013,2]
[361914007,1747887048172,-430.0,0.00023013,2]
[361914008,1747887048183,-430.0,0.00023013,2]
[361914009,1747887048194,-940.52,0.00023013,2]
[361914010,1747887048205,-430.0,0.00023013,2]
[361914011,1747887048216,-430.0,0.00023013,2]
[361914012,1747887048229,-430.0,0.00023013,2]
[361914013,1747887048239,-493.15,0.00023013,2]
[361914014,1747887048250,-618.76,0.00023013,2]
[361914015,1747887048262,-430.0,0.00023013,2]
[361914016,1747887048273,-430.0,0.00023013,2]
[361914017,1747887048284,-430.0,0.00023013,2]
[361914018,1747887048295,-430.0,0.00023013,2]
[361914019,1747887048306,-430.0,0.00023013,2]
[361914020,1747887048320,-430.0,0.00023013,2]
[361914021,1747887048331,-327.67,0.00023013,2]
[361914022,1747887048343,-1802.67,0.00023013,2]
[361914023,1747887048354,-430.0,0.00023013,2]
[361914024,1747887048367,-430.0,0.00023013,2]
[361914025,1747887048379,-430.0,0.00023013,2]
[361914026,1747887048391,-430.0,0.00023013,2]
[361914027,1747887048403,-430.0,0.00023013,2]
[361914028,1747887048415,-430.0,0.00023013,2]
[361914029,1747887048427,-2393.66,0.00023013,2]
[361914030,1747887048438,-430.0,0.00023013,2]
[361914031,1747887048449,-430.0,0.00023013,2]
[361914032,1747887048460,-430.0,0.00023013,2]
[361914033,1747887048475,-430.0,0.00023013,2]
[361914034,1747887048487,-480.8,0.00023013,2]
[361914035,1747887048498,-430.0,0.00023013,2]
[361914036,1747887048510,-430.0,0.00023013,2]
[361914037,1747887048520,-430.0,0.00023013,2]
[361914038,1747887048532,-430.0,0.00023013,2]
[361914039,1747887048543,-430.0,0.00023013,2]
[361914040,1747887048555,-430.0,0.00023013,2]
[361914041,1747887048565,-430.0,0.00023013,2]
[361914042,1747887048575,-430.0,0.00023013,2]
[361914043,1747887048585,-430.0,0.00023013,2]
[361914044,1747887048595,-430.0,0.00023013,2]
[361914045,1747887048605,-430.0,0.00023013,2]
[361914046,1747887048619,-430.0,0.00023013,2]
[361914047,1747887048629,-430.0,0.00023013,2]
[361914048,1747887048640,-430.0,0.00023013,2]
[361914049,1747887048650,-430.0,0.00023013,2]
[361914050,1747887048661,-870.57,0.00023013,2]
[361914051,1747887048671,-177.56,0.00023013,2]
[361914052,1747887048682,-805.26,0.00023013,2]
[361914053,1747887048692,-430.0,0.00023013,2]
[361914054,1747887048702,-430.0,0.00023013,2]
[361914055,1747887048712,-430.0,0.00023013,2]
[361914056,1747887048725,-430.0,0.00023013,2]
[361914057,1747887048735,-255.91,0.00023013,2]
[361914058,1747887048746,-210.62,0.00023013,2]
[361914059,1747887048756,-430.0,0.00023013,2]
[361914060,1747887048765,-430.0,0.00023013,2]
[361914061,1747887048775,-430.0,0.00023013,2]
[361914062,1747887048786,-2316.98,0.00023013,2]
[361914063,1747887048796,-1206.52233631,0.00023038,8]
[361914064,1747887048806,-1000.0,0.0002308,2]
[361914065,1747887048816,-1000.0,0.00023094,2]
[361914066,1747887048826,-1002.33265144,0.00023094,2]
[361914067,1747887048836,-1003.45068481,0.00023099,2]
[361914068,1747887048846,-1000.0,0.00023099,2]
[361914069,1747887048855,-1010.34852641,0.00023099,2]
[361914070,1747887048866,-500.0,0.00023099,2]
[361914071,1747887048876,-1010.95671398,0.00023099,2]
[361914072,1747887048885,-1016.29769984,0.00023101,2]
[361914073,1747887048895,-500.0,0.00023101,2]
[361914074,1747887048905,-500.0,0.00023101,2]
[361914075,1747887048916,-1005.97655298,0.00023112,2]
[361914076,1747887049053,-1008.05960681,0.00023112,2]
[361914077,1747887049064,-1000.0,0.00023112,2]
[361914078,1747887049074,-1002.23869668,0.00023112,2]
[361914079,1747887049084,-1006.38654564,0.00023112,2]
[361914080,1747887049094,-1000.0,0.00023113,2]
[361914081,1747887049103,-500.0,0.00023113,2]
[361914082,1747887049113,-638.20879264,0.00023113,2]
[361914083,1747887049123,-1001.12886528,0.00023113,2]
[361914084,1747887049133,-1003.50866008,0.00023114,2]
[361914085,1747887049143,-500.0,0.00023122,2]
[361914086,1747887049153,-1001.02967118,0.00023124,2]
[361914087,1747887049163,-500.0,0.00023124,2]
[361914088,1747887049173,-500.0,0.00023124,2]
[361914089,1747887049183,-500.0,0.00023124,2]
[361914090,1747887049193,-161.18075282,0.00023124,2]
[361914091,1747887049203,-679.98910693,0.00023124,2]
[361914092,1747887049213,-1000.69058986,0.00023124,2]
[361914093,1747887049224,-500.0,0.00023124,2]
[361914094,1747887049235,-500.0,0.00023124,2]
[361914095,1747887049244,-1000.37399013,0.00023124,2]
[361914096,1747887049255,-503.5411852,0.0002313,2]
[361914097,1747887049265,-1001.05278464,0.0002313,2]
[361914098,1747887049274,-1113.60087583,0.0002313,2]
[361914099,1747887049284,-434.12604693,0.0002313,2]
[361914100,1747887049294,-1206.52233631,0.00023176,8]
[361914101,1747887049304,-5000.0,0.00023235,2]
[361914102,1747887049315,-266.0,0.00023284,120]
[361914103,1747887049337,-430.0,0.00023287,2]
[361914104,1747887049350,-430.0,0.00023287,2]
[361914105,1747887049361,-430.0,0.00023287,2]
[361914106,1747887049372,-430.0,0.00023287,2]
[361914107,1747887049383,-430.0,0.00023287,2]
[361914108,1747887049395,-430.0,0.00023287,2]
[361914109,1747887049406,-553.68,0.00023287,2]
[361914110,1747887049417,-430.0,0.00023287,2]
[361914111,1747887049428,-430.0,0.00023287,2]
[361914112,1747887049439,-430.0,0.00023287,2]
[361914113,1747887049449,-430.0,0.00023287,2]
[361914114,1747887049459,-430.0,0.00023287,2]
[361914115,1747887049470,-430.0,0.00023287,2]
[361914116,1747887049479,-430.0,0.00023287,2]
[361914117,1747887049489,-430.0,0.00023287,2]
[361914118,1747887049500,-430.0,0.00023287,2]
[361914119,1747887049510,-430.0,0.00023287,2]
[361914120,1747887049520,-430.0,0.00023287,2]
[361914121,1747887049530,-430.0,0.00023287,2]
[361914122,1747887049541,-556.42,0.00023287,2]
[361914123,1747887049566,-453.61,0.00023287,2]
[361914124,1747887049586,-430.0,0.00023287,2]
[361914125,1747887049597,-430.0,0.00023287,2]
[361914126,1747887049608,-430.0,0.00023287,2]
[361914127,1747887049623,-430.0,0.00023287,2]
[361914128,1747887049635,-430.0,0.00023287,2]
[361914129,1747887049645,-430.0,0.00023287,2]
[361914130,1747887049655,-4727.57,0.00023287,2]
[361914131,1747887049667,-528.72,0.00023287,2]
[361914132,1747887049677,-360.17,0.00023287,2]
[361914133,1747887049687,-430.0,0.00023287,2]
[361914134,1747887049697,-430.0,0.00023287,2]
[361914135,1747887049711,-1419.92,0.00023287,2]
[361914136,1747887049723,-430.0,0.00023287,2]
[361914137,1747887049732,-530.43,0.00023287,2]
[361914138,1747887049743,-582.86,0.00023287,2]
[361914139,1747887049752,-430.0,0.00023287,2]
[361914140,1747887049762,-430.0,0.00023287,2]
[361914141,1747887049772,-430.0,0.00023287,2]
[361914142,1747887049782,-430.0,0.00023287,2]
[361914143,1747887049793,-660.78,0.00023287,2]
[361914144,1747887049803,-1550.53,0.00023287,2]
[361914145,1747887049813,-430.0,0.00023287,2]
[361914146,1747887049823,-430.0,0.00023287,2]
[361914147,1747887049833,-214.7,0.00023287,2]
[361914148,1747887049846,-940.52,0.00023287,2]
[361914149,1747887049858,-430.0,0.00023287,2]
[361914150,1747887049868,-430.0,0.00023287,2]
[361914151,1747887049878,-493.15,0.00023287,2]
[361914152,1747887049888,-618.76,0.00023287,2]
[361914153,1747887049899,-430.0,0.00023287,2]
[361914154,1747887049909,-430.0,0.00023287,2]
[361914155,1747887049919,-512.28,0.00023287,2]
[361914156,1747887049929,-430.0,0.00023287,2]
[361914157,1747887049939,-430.0,0.00023287,2]
[361914158,1747887049948,-1802.67,0.00023287,2]
[361914159,1747887049958,-430.0,0.00023287,2]
[361914160,1747887049973,-430.0,0.00023287,2]
[361914161,1747887049984,-430.0,0.00023287,2]
[361914162,1747887049994,-430.0,0.00023287,2]
[361914163,1747887050004,-430.0,0.00023287,2]
[361914164,1747887050014,-430.0,0.00023287,2]
[361914165,1747887050024,-2393.66,0.00023287,2]
[361914166,1747887050034,-430.0,0.00023287,2]
[361914167,1747887050045,-430.0,0.00023287,2]
[361914168,1747887050054,-430.0,0.00023287,2]
[361914169,1747887050064,-430.0,0.00023287,2]
[361914170,1747887050074,-480.8,0.00023287,2]
[361914171,1747887050084,-430.0,0.00023287,2]
[361914172,1747887050094,-430.0,0.00023287,2]
[361914173,1747887050103,-430.0,0.00023287,2]
[361914174,1747887050114,-384.14,0.00023287,2]
[361914175,1747887050124,-430.0,0.00023287,2]
[361914176,1747887050134,-452.41,0.00023287,2]
[361914177,1747887050144,-430.0,0.00023287,2]
[361914178,1747887050154,-430.0,0.00023287,2]
[361914179,1747887050163,-430.0,0.00023287,2]
[361914180,1747887050174,-430.0,0.00023287,2]
[361914181,1747887050183,-430.0,0.00023287,2]
[361914182,1747887050194,-430.0,0.00023287,2]
[361914183,1747887050204,-430.0,0.00023287,2]
[361914184,1747887050215,-870.57,0.00023287,2]
[361914185,1747887050227,-805.26,0.00023287,2]
[361914186,1747887050236,-430.0,0.00023287,2]
[361914187,1747887050246,-430.0,0.00023287,2]
[361914188,1747887050255,-430.0,0.00023287,2]
[361914189,1747887050265,-430.0,0.00023287,2]
[361914190,1747887050275,-430.0,0.00023287,2]
[361914191,1747887050284,-2316.98,0.00023287,2]
[361914192,1747887050294,-266.0,0.00023294,120]
[361914193,1747887050306,-266.0,0.00023304,120]
[361914194,1747887050315,-1206.52233631,0.00023314,9]
[361914195,1747887050325,-1206.52233631,0.00023452,9]
[361914196,1747887050334,-1146.69034761,0.00023496,2]
[361914197,1747887050344,-533.08,0.00023561,2]
[361914198,1747887050354,-426.6,0.00023561,2]
[361914199,1747887050364,-419.91,0.00023561,2]
[361914200,1747887050374,-430.0,0.00023561,2]
[361914201,1747887050385,-287.8,0.00023561,2]
[361914202,1747887050394,-430.0,0.00023561,2]
[361914203,1747887050404,-557.24,0.00023561,2]
[361914204,1747887050414,-430.0,0.00023561,2]
[361914205,1747887050423,-430.0,0.00023561,2]
[361914206,1747887050434,-430.0,0.00023561,2]
[361914207,1747887050444,-430.0,0.00023561,2]
[361914208,1747887050453,-430.0,0.00023561,2]
[361914209,1747887050463,-430.0,0.00023561,2]
[361914210,1747887050473,-430.0,0.00023561,2]
[361914211,1747887050483,-430.0,0.00023561,2]
[361914212,1747887050493,-430.0,0.00023561,2]
[361914213,1747887050503,-430.0,0.00023561,2]
[361914214,1747887050513,-460.28,0.00023561,2]
[361914215,1747887050522,-556.42,0.00023561,2]
[361914216,1747887050532,-453.61,0.00023561,2]
[361914217,1747887050541,-386.55,0.00023561,2]
[361914218,1747887050551,-211.57,0.00023561,2]
[361914219,1747887050561,-430.0,0.00023561,2]
[361914220,1747887050571,-430.0,0.00023561,2]
[361914221,1747887050580,-430.0,0.00023561,2]
[361914222,1747887050590,-430.0,0.00023561,2]
[361914223,1747887050602,-479.29,0.00023561,2]
[361914224,1747887050611,-430.0,0.00023561,2]
[361914225,1747887050622,-1419.92,0.00023561,2]
[361914226,1747887050633,-367.76,0.00023561,2]
[361914227,1747887050644,-530.43,0.00023561,2]
[361914228,1747887050653,-582.86,0.00023561,2]
[361914229,1747887050665,-503.66,0.00023561,2]
[361914230,1747887050675,-430.0,0.00023561,2]
[361914231,1747887050684,-430.0,0.00023561,2]
[361914232,1747887050693,-430.0,0.00023561,2]
[361914233,1747887050704,-660.78,0.00023561,2]
[361914234,1747887050714,-1550.53,0.00023561,2]
[361914235,1747887050725,-430.0,0.00023561,2]
[361914236,1747887050735,-430.0,0.00023561,2]
[361914237,1747887050744,-940.52,0.00023561,2]
[361914238,1747887050753,-430.0,0.00023561,2]
[361914239,1747887050763,-493.15,0.00023561,2]
[361914240,1747887050773,-618.76,0.00023561,2]
[361914241,1747887050783,-430.0,0.00023561,2]
[361914242,1747887050793,-220.79,0.00023561,2]
[361914243,1747887050803,-430.0,0.00023561,2]
[361914244,1747887050812,-430.0,0.00023561,2]
[361914245,1747887050822,-1802.67,0.00023561,2]
[361914246,1747887050831,-430.0,0.00023561,2]
[361914247,1747887050841,-430.0,0.00023561,2]
[361914248,1747887050851,-430.0,0.00023561,2]
[361914249,1747887050860,-430.0,0.00023561,2]
[361914250,1747887050870,-183.44,0.00023561,2]
[361914251,1747887050879,-430.0,0.00023561,2]
[361914252,1747887050888,-2393.66,0.00023561,2]
[361914253,1747887050898,-204.36,0.00023561,2]
[361914254,1747887050908,-430.0,0.00023561,2]
[361914255,1747887050917,-430.0,0.00023561,2]
[361914256,1747887050927,-430.0,0.00023561,2]
[361914257,1747887050937,-480.8,0.00023561,2]
[361914258,1747887050946,-324.78,0.00023561,2]
[361914259,1747887050956,-430.0,0.00023561,2]
[361914260,1747887050965,-430.0,0.00023561,2]
[361914261,1747887050977,-430.0,0.00023561,2]
[361914262,1747887050986,-430.0,0.00023561,2]
[361914263,1747887050996,-430.0,0.00023561,2]
[361914264,1747887051005,-430.0,0.00023561,2]
[361914265,1747887051015,-430.0,0.00023561,2]
[361914266,1747887051025,-430.0,0.00023561,2]
[361914267,1747887051035,-430.0,0.00023561,2]
[361914268,1747887051044,-870.57,0.00023561,2]
[361914269,1747887051055,-805.26,0.00023561,2]
[361914270,1747887051065,-430.0,0.00023561,2]
[361914271,1747887051076,-430.0,0.00023561,2]
[361914272,1747887051086,-430.0,0.00023561,2]
[361914273,1747887051096,-430.0,0.00023561,2]
[361914274,1747887051105,-430.0,0.00023561,2]
[361914275,1747887051115,-2316.98,0.00023561,2]
[361914276,1747887051125,-1206.52233631,0.0002359,9]
[361914277,1747887051135,-151.0,0.00023702,2]
[361914278,1747887051145,-152.67002143,0.00023702,2]
[361914279,1747887051154,-207.4,0.00023702,2]
[361914280,1747887051164,-1206.52233631,0.00023728,9]
[361914281,1747887051173,-151.0,0.000238,6]
[361914282,1747887051183,-420.0,0.00023816,2]
[361914283,1747887051192,-564.9588964,0.00023835,2]
[361914284,1747887051202,-430.0,0.00023835,2]
[361914285,1747887051323,-430.0,0.00023835,2]
[361914286,1747887051334,-430.0,0.00023835,2]
[361914287,1747887051343,-340.47,0.00023835,2]
[361914288,1747887051353,-430.0,0.00023835,2]
[361914289,1747887051362,-430.0,0.00023835,2]
[361914290,1747887051371,-430.0,0.00023835,2]
[361914291,1747887051381,-179.76,0.00023835,2]
[361914292,1747887051392,-430.0,0.00023835,2]
[361914293,1747887051401,-430.0,0.00023835,2]
[361914294,1747887051411,-430.0,0.00023835,2]
[361914295,1747887051420,-556.42,0.00023835,2]
[361914296,1747887051430,-453.61,0.00023835,2]
[361914297,1747887051439,-430.0,0.00023835,2]
[361914298,1747887051462,-430.0,0.00023835,2]
[361914299,1747887051473,-430.0,0.00023835,2]
[361914300,1747887051484,-307.74,0.00023835,2]
[361914301,1747887051494,-430.0,0.00023835,2]
[361914302,1747887051504,-1419.92,0.00023835,2]
[361914303,1747887051514,-530.43,0.00023835,2]
[361914304,1747887051524,-582.86,0.00023835,2]
[361914305,1747887051535,-430.0,0.00023835,2]
[361914306,1747887051545,-430.0,0.00023835,2]
[361914307,1747887051555,-430.0,0.00023835,2]
[361914308,1747887051565,-660.78,0.00023835,2]
[361914309,1747887051575,-1550.53,0.00023835,2]
[361914310,1747887051586,-426.73,0.00023835,2]
[361914311,1747887051596,-940.52,0.00023835,2]
[361914312,1747887051607,-430.0,0.00023835,2]
[361914313,1747887051620,-493.15,0.00023835,2]
[361914314,1747887051630,-618.76,0.00023835,2]
[361914315,1747887051640,-430.0,0.00023835,2]
[361914316,1747887051650,-430.0,0.00023835,2]
[361914317,1747887051661,-426.69435964,0.00023835,2]
[361914318,1747887051671,-1802.67,0.00023835,2]
[361914319,1747887051681,-430.0,0.00023835,2]
[361914320,1747887051692,-430.0,0.00023835,2]
[361914321,1747887051703,-430.0,0.00023835,2]
[361914322,1747887051713,-430.0,0.00023835,2]
[361914323,1747887051724,-430.0,0.00023835,2]
[361914324,1747887051734,-2393.66,0.00023835,2]
[361914325,1747887051744,-430.0,0.00023835,2]
[361914326,1747887051754,-430.0,0.00023835,2]
[361914327,1747887051764,-430.0,0.00023835,2]
[361914328,1747887051774,-480.8,0.00023835,2]
[361914329,1747887051784,-167.08486816,0.00023835,2]
[361914330,1747887051795,-430.0,0.00023835,2]
[361914331,1747887051805,-430.0,0.00023835,2]
[361914332,1747887051815,-430.0,0.00023835,2]
[361914333,1747887051826,-430.0,0.00023835,2]
[361914334,1747887051836,-430.0,0.00023835,2]
[361914335,1747887051846,-570.19,0.00023835,2]
[361914336,1747887051856,-430.0,0.00023835,2]
[361914337,1747887051866,-160.33,0.00023835,2]
[361914338,1747887051876,-870.57,0.00023835,2]
[361914339,1747887051885,-805.26,0.00023835,2]
[361914340,1747887051895,-430.0,0.00023835,2]
[361914341,1747887051905,-430.0,0.00023835,2]
[361914342,1747887051915,-430.0,0.00023835,2]
[361914343,1747887051925,-430.0,0.00023835,2]
[361914344,1747887051935,-430.0,0.00023835,2]
[361914345,1747887051945,-2316.98,0.00023835,2]
[361914346,1747887051955,-1206.52233631,0.00023866,10]
[361914347,1747887051965,-1206.52233631,0.00024003,10]
[361914348,1747887051977,-151.0,0.000241,5]
[361914349,1747887051987,-430.0,0.00024109,2]
[361914350,1747887051997,-195.98,0.00024109,2]
[361914351,1747887052006,-430.0,0.00024109,2]
[361914352,1747887052017,-430.0,0.00024109,2]
[361914353,1747887052026,-430.0,0.00024109,2]
[361914354,1747887052036,-430.0,0.00024109,2]
[361914355,1747887052046,-430.0,0.00024109,2]
[361914356,1747887052055,-430.0,0.00024109,2]
[361914357,1747887052065,-430.0,0.00024109,2]
[361914358,1747887052080,-556.42,0.00024109,2]
[361914359,1747887052090,-453.61,0.00024109,2]
[361914360,1747887052100,-175.56,0.00024109,2]
[361914361,1747887052110,-476.87,0.00024109,2]
[361914362,1747887052120,-430.0,0.00024109,2]
[361914363,1747887052130,-430.0,0.00024109,2]
[361914364,1747887052140,-1419.92,0.00024109,2]
[361914365,1747887052150,-530.43,0.00024109,2]
[361914366,1747887052160,-582.86,0.00024109,2]
[361914367,1747887052170,-430.0,0.00024109,2]
[361914368,1747887052181,-430.0,0.00024109,2]
[361914369,1747887052190,-430.0,0.00024109,2]
[361914370,1747887052200,-660.78,0.00024109,2]
[361914371,1747887052210,-1550.53,0.00024109,2]
[361914372,1747887052222,-940.52,0.00024109,2]
[361914373,1747887052232,-430.0,0.00024109,2]
[361914374,1747887052242,-493.15,0.00024109,2]
[361914375,1747887052252,-618.76,0.00024109,2]
[361914376,1747887052262,-430.0,0.00024109,2]
[361914377,1747887052272,-430.0,0.00024109,2]
[361914378,1747887052281,-1802.67,0.00024109,2]
[361914379,1747887052291,-496.06,0.00024109,2]
[361914380,1747887052302,-430.0,0.00024109,2]
[361914381,1747887052311,-430.0,0.00024109,2]
[361914382,1747887052322,-430.0,0.00024109,2]
[361914383,1747887052331,-430.0,0.00024109,2]
[361914384,1747887052340,-2393.66,0.00024109,2]
[361914385,1747887052351,-430.0,0.00024109,2]
[361914386,1747887052361,-430.0,0.00024109,2]
[361914387,1747887052371,-430.0,0.00024109,2]
[361914388,1747887052381,-480.8,0.00024109,2]
[361914389,1747887052391,-430.0,0.00024109,2]
[361914390,1747887052400,-430.0,0.00024109,2]
[361914391,1747887052410,-430.0,0.00024109,2]
[361914392,1747887052421,-430.0,0.00024109,2]
[361914393,1747887052431,-430.0,0.00024109,2]
[361914394,1747887052440,-430.0,0.00024109,2]
[361914395,1747887052450,-870.57,0.00024109,2]
[361914396,1747887052460,-805.26,0.00024109,2]
[361914397,1747887052471,-430.0,0.00024109,2]
[361914398,1747887052481,-430.0,0.00024109,2]
[361914399,1747887052491,-171.69,0.00024109,2]
[361914400,1747887052501,-430.0,0.00024109,2]
[361914401,1747887052511,-430.0,0.00024109,2]
[361914402,1747887052520,-2316.98,0.00024109,2]
[361914403,1747887052530,-1206.52233631,0.00024141,10]
[361914404,1747887052540,-1146.69034761,0.00024198,2]
[361914405,1747887052549,-1206.52233631,0.00024279,10]
[361914406,1747887052559,-159.05485592,0.00024356,2]
[361914407,1747887052569,-430.0,0.00024383,2]
[361914408,1747887052578,-430.0,0.00024383,2]
[361914409,1747887052588,-202.48,0.00024383,2]
[361914410,1747887052597,-430.0,0.00024383,2]
[361914411,1747887052607,-430.0,0.00024383,2]
[361914412,1747887052616,-328.76,0.00024383,2]
[361914413,1747887052629,-430.0,0.00024383,2]
[361914414,1747887052638,-430.0,0.00024383,2]
[361914415,1747887052648,-556.42,0.00024383,2]
[361914416,1747887052658,-453.61,0.00024383,2]
[361914417,1747887052669,-430.0,0.00024383,2]
[361914418,1747887052679,-335.62,0.00024383,2]
[361914419,1747887052689,-1419.92,0.00024383,2]
[361914420,1747887052700,-530.43,0.00024383,2]
[361914421,1747887052710,-582.86,0.00024383,2]
[361914422,1747887052721,-430.0,0.00024383,2]
[361914423,1747887052731,-430.0,0.00024383,2]
[361914424,1747887052741,-197.18,0.00024383,2]
[361914425,1747887052751,-660.78,0.00024383,2]
[361914426,1747887052761,-1550.53,0.00024383,2]
[361914427,1747887052771,-940.52,0.00024383,2]
[361914428,1747887052780,-430.0,0.00024383,2]
[361914429,1747887052790,-493.15,0.00024383,2]
[361914430,1747887052800,-618.76,0.00024383,2]
[361914431,1747887052810,-430.0,0.00024383,2]
[361914432,1747887052820,-430.0,0.00024383,2]
[361914433,1747887052829,-1802.67,0.00024383,2]
[361914434,1747887052838,-430.0,0.00024383,2]
[361914435,1747887052848,-430.0,0.00024383,2]
[361914436,1747887052858,-430.0,0.00024383,2]
[361914437,1747887052867,-430.0,0.00024383,2]
[361914438,1747887052877,-2393.66,0.00024383,2]
[361914439,1747887052886,-430.0,0.00024383,2]
[361914440,1747887052896,-430.0,0.00024383,2]
[361914441,1747887052906,-430.0,0.00024383,2]